[Event "FIDE WCCC G10 2018"]
[Site "Santiago de Compostela"]
[Date "2018.11.15"]
[Round "11"]
[White "Edithso, Samantha"]
[Black "Shvedova, Alexandra"]
[Result "1-0"]
[ECO "C54"]
[WhiteElo "1879"]
[BlackElo "1782"]
[Annotator "NA"]
[PlyCount "154"]
[EventDate "2018.11.04"]
[EventType "swiss"]
[EventCountry "ESP"]
[SourceTitle "playchess.com"]
[Source "ChessBase"]
[SourceQuality "1"]
[TimeControl "40/5400+30:1800+30"]

1. e4 {[%emt 0:00:00]} e5 {[%emt 0:00:00]} 2. Nf3 {[%emt 0:00:00]} Nc6 {[%emt 0:00:00]} 3. Bc4 {[%emt 0:00:00]} Bc5 {[%emt 0:00:00]} 4. c3 {[%emt 0:01:08]} Nf6 {[%emt 0:00:00]} 5. d3 {[%emt 0:00:04]} d6 {[%emt 0:00:00]} 6. h3 {[%emt 0:00:10]} Bb6 {[%emt 0:01:46]} 7. O-O {[%emt 0:00:15] C54: Giuoco Piano: 4 c3 Nf6, main lines with 5 d4 and 5 d3} Ne7 {[%emt 0:00:13]} 8. Re1 {[%emt 0:02:50]} Ng6 {[%emt 0:00:20]} 9. Nbd2 {[%emt 0:03:00]} O-O {[%emt 0:00:13]} 10. Nf1 {[%emt 0:00:11]} h6 {[%emt 0:00:45] LiveBook: 5 Games} 11. Ng3 {[%emt 0:00:28]} c6 {[%emt 0:00:06]} 12. Bb3 {[%emt 0:00:57]} d5 {[%emt 0:00:23]} 13. exd5 {[%emt 0:01:46]} Nxd5 {[%emt 0:00:16] [#]} 14. Bc2 $146 {[%emt 0:02:59]} (14. d4 exd4 15. Nxd4 {½-½ (27) Wei,Y (2734)-Wen,Y (2596) Tianjin 2018}) 14... Bc7 {[%emt 0:11:35]} 15. d4 {[%emt 0:08:33]} exd4 {[%emt 0:00:28]} 16. Nxd4 {[%emt 0:00:41]} a6 {[%emt 0:09:05]} 17. Qf3 {[%emt 0:01:32]} Nf6 {[%emt 0:04:02]} 18. Be3 {[%emt 0:02:15]} Ne5 {[%emt 0:00:51]} 19. Qe2 {[%emt 0:00:37]} Nd5 {[%emt 0:00:21]} 20. Rad1 {[%emt 0:01:26]} Bd7 {[%emt 0:03:14]} 21. a3 {[%emt 0:05:41]} Re8 {[%emt 0:10:49]} 22. Bb1 {[%emt 0:05:18]} Ng6 {[%emt 0:02:32]} 23. Ne4 {[%emt 0:10:19]} Nxe3 {[%emt 0:15:53]} 24. fxe3 {[%emt 0:00:55]} (24. Qxe3 $11 Qe7 25. Nf3) 24... Qe7 {[%emt 0:00:16]} 25. Qf2 {[%emt 0:01:01]} Qe5 {[%emt 0:03:52]} ({Better is} 25... Rad8 $17) 26. Nf3 {[%emt 0:00:22]} Qe7 $1 {[%emt 0:00:11]} 27. Ng3 {[%emt 0:03:20]} Rad8 {[%emt 0:01:28]} 28. e4 {[%emt 0:04:36]} Ne5 {[%emt 0:14:57]} 29. Nd4 {[%emt 0:06:50]} g6 {[%emt 0:02:12]} 30. Ba2 {[%emt 0:00:48]} Bb6 {[%emt 0:03:01]} 31. Kh1 {[%emt 0:01:58]} Be6 {[%emt 0:04:26]} 32. Bxe6 {[%emt 0:00:54]} fxe6 {[%emt 0:00:37]} 33. Nge2 {[%emt 0:03:26]} Qg7 {[%emt 0:04:26]} (33... g5 $17 34. Qe3 Rf8) 34. Qg3 {[%emt 0:01:07]} g5 {[%emt 0:00:40]} 35. Rf1 {[%emt 0:01:03]} c5 {[%emt 0:00:44]} 36. Nf3 {[%emt 0:00:44]} Bc7 {[%emt 0:01:32]} 37. Nxe5 {[%emt 0:01:32]} Qxe5 {[%emt 0:00:08]} 38. Qxe5 {[%emt 0:00:59]} Bxe5 {[%emt 0:00:04]} 39. Nc1 {[%emt 0:00:24]} c4 {[%emt 0:00:59]} 40. Ne2 {[%emt 0:00:00]} h5 {[%emt 0:00:00]} 41. Kg1 {[%emt 0:02:49]} Kg7 {[%emt 0:04:30]} 42. Nd4 {[%emt 0:01:21]} Kg6 {[%emt 0:01:54]} 43. g4 {[%emt 0:04:19]} h4 {[%emt 0:00:58]} 44. Nf3 {[%emt 0:01:15]} Bc7 {[%emt 0:03:11]} 45. Kg2 {[%emt 0:00:41]} Bb8 {[%emt 0:04:46]} 46. Rd4 {[%emt 0:02:04]} e5 {[%emt 0:05:33]} 47. Rd2 {[%emt 0:05:18]} Rxd2+ {[%emt 0:03:07]} 48. Nxd2 {[%emt 0:00:15]} b5 {[%emt 0:00:15]} 49. Rf5 {[%emt 0:00:12]} Ba7 $1 {[%emt 0:03:36]} 50. Kf3 {[%emt 0:05:52]} Bb6 {[%emt 0:01:30]} 51. Ke2 {[%emt 0:00:31]} Bd8 {[%emt 0:00:17]} 52. a4 {[%emt 0:01:51]} Bf6 {[%emt 0:00:50]} 53. axb5 {[%emt 0:03:13]} axb5 {[%emt 0:00:07]} 54. Nb1 {[%emt 0:00:50]} Ra8 {[%emt 0:02:59]} 55. Kd1 {[%emt 0:01:59]} Rd8+ {[%emt 0:02:15]} 56. Nd2 {[%emt 0:00:06]} Rd3 {[%emt 0:01:36]} 57. Rf3 {[%emt 0:00:06]} Rd7 {[%emt 0:00:15]} 58. Kc2 {[%emt 0:00:08]} Be7 {[%emt 0:01:29]} 59. b3 {[%emt 0:01:42]} cxb3+ {[%emt 0:00:37]} 60. Nxb3 {[%emt 0:00:16]} Rc7 {[%emt 0:00:12]} 61. Nd2 {[%emt 0:00:48]} Ra7 {[%emt 0:02:04]} 62. Rf5 {[%emt 0:02:22]} Ra2+ {[%emt 0:00:27]} 63. Kd3 {[%emt 0:00:16]} Ra3 {[%emt 0:03:19]} (63... Bf6 $11) 64. Rxe5 {[%emt 0:00:54]} Bf6 {[%emt 0:00:03]} 65. Rc5 {[%emt 0:00:12]} b4 {[%emt 0:00:15]} 66. e5 {[%emt 0:00:16]} Rxc3+ $2 {[%emt 0:01:48]} (66... Bd8 67. Ne4 Kf7 68. Nd6+ Ke7) 67. Rxc3 {[%emt 0:00:08]} bxc3 {[%emt 0:00:02]} 68. Nf3 {[%emt 0:00:22]} Bd8 {[%emt 0:01:37]} 69. Kxc3 {[%emt 0:00:04]} Kf7 $18 {[%emt 0:00:06]} 70. Kd4 {[%emt 0:00:08]} Ke6 {[%emt 0:00:16]} 71. Ke4 {[%emt 0:00:03]} Be7 {[%emt 0:01:00]} 72. Nd4+ {[%emt 0:00:06]} Kf7 {[%emt 0:00:06]} 73. Kf5 {[%emt 0:00:06]} Bc5 {[%emt 0:00:25]} 74. Nf3 {[%emt 0:00:20]} Be3 {[%emt 0:00:29]} 75. Nxg5+ {[%emt 0:00:25]} Bxg5 {[%emt 0:00:06]} 76. Kxg5 {[%emt 0:00:03]} Ke6 {[%emt 0:00:04]} 77. Kf4 {[%emt 0:00:06]} Kd5 {Ke4+} 1-0

[Event "FIDE WCCC G10 2018"]
[Site "Santiago de Compostela"]
[Date "2018.11.15"]
[Round "11"]
[White "Kleymenova, Valeria"]
[Black "Zhapova, Yana"]
[Result "1/2-1/2"]
[ECO "A40"]
[WhiteElo "1773"]
[BlackElo "1821"]
[Annotator "NA"]
[PlyCount "116"]
[EventDate "2018.11.04"]
[EventType "swiss"]
[EventCountry "ESP"]
[SourceTitle "playchess.com"]
[Source "ChessBase"]
[SourceQuality "1"]
[TimeControl "40/5400+30:1800+30"]

1. d4 {[%emt 0:00:00]} e6 {[%emt 0:00:00]} 2. c4 {[%emt 0:00:07]} d5 {[%emt 0:00:00]} 3. cxd5 {[%emt 0:01:08]} exd5 {[%emt 0:00:04]} 4. Nc3 {[%emt 0:00:33]} c6 {[%emt 0:00:28]} 5. Bf4 {[%emt 0:06:55]} Nf6 {[%emt 0:01:36]} 6. e3 {[%emt 0:00:45]} Bf5 {[%emt 0:00:46]} 7. Nf3 {[%emt 0:01:30]} Bd6 {[%emt 0:02:12] LiveBook: 24 Games} 8. Ne5 {[%emt 0:06:13] D35: Queen's Gambit Declined: Exchange Variation} (8. Bg3 O-O 9. Be2 Re8 10. Qb3 Bxg3 11. hxg3 Qb6 12. Nh4 Be4 13. f3 Bg6 14. Nxg6 fxg6 15. Qxb6 axb6 16. Kd2 b5 {½-½ (29) Anastasian,A (2559)-Kotanjian,T (2568) Yerevan 2009}) 8... Qe7 {[%emt 0:04:29]} 9. Bd3 {[%emt 0:05:41]} Bxd3 10. Nxd3 $146 {[%emt 0:01:05]} ({Predecessor:} 10. Qxd3 O-O 11. O-O Nbd7 12. Nxd7 Nxd7 13. Bxd6 Qxd6 14. b4 a6 15. Rab1 Rfe8 {1-0 (51) Casagrande,H (2345)-Sommerbauer,N (2395) Moesern 1997}) 10... Bxf4 {[%emt 0:02:10]} 11. Nxf4 {[%emt 0:00:10]} Nbd7 {[%emt 0:01:18]} 12. Qb3 {[%emt 0:02:43]} Nb6 {[%emt 0:06:26]} 13. O-O {[%emt 0:01:51]} O-O {[%emt 0:00:18]} 14. Rac1 {[%emt 0:01:05]} Nc4 {[%emt 0:00:35]} 15. Rfe1 {[%emt 0:03:58]} Rfe8 {[%emt 0:10:08]} 16. Qc2 {[%emt 0:05:31]} Rad8 {[%emt 0:07:53]} 17. b3 {[%emt 0:06:08]} Nd6 {[%emt 0:00:10]} 18. Na4 {[%emt 0:01:48]} Nfe4 {[%emt 0:06:04]} 19. f3 {[%emt 0:01:32]} Ng5 {[%emt 0:01:45]} 20. Nc5 {[%emt 0:04:09]} Qf6 {[%emt 0:01:21]} 21. Qd2 {[%emt 0:02:33]} Qh6 {[%emt 0:06:25]} 22. Qd3 {[%emt 0:07:23]} Re7 {[%emt 0:03:01]} 23. Re2 {[%emt 0:03:59]} Rde8 {[%emt 0:00:54]} 24. Rce1 {[%emt 0:01:44]} Qh4 {[%emt 0:02:30]} 25. Qc2 {[%emt 0:04:47]} Qh6 {[%emt 0:01:43]} 26. Ncd3 {[%emt 0:03:30]} Ne6 {[%emt 0:01:17]} 27. Nxe6 {[%emt 0:02:20]} Rxe6 {[%emt 0:00:22]} 28. Nf4 {[%emt 0:00:19]} R6e7 {[%emt 0:00:22]} 29. Qd3 {[%emt 0:01:20]} Qf6 {[%emt 0:01:16]} 30. Nh3 {[%emt 0:01:19]} Nf5 $11 {[%emt 0:01:32]} 31. Nf2 {[%emt 0:01:11]} h6 {[%emt 0:01:25]} 32. Ng4 {[%emt 0:00:36]} Qe6 {[%emt 0:03:23]} 33. e4 {[%emt 0:02:40]} dxe4 {[%emt 0:00:39]} 34. fxe4 {[%emt 0:01:01]} Nxd4 {[%emt 0:01:36]} 35. Nxh6+ {[%emt 0:00:45]} Qxh6 {[%emt 0:00:04]} 36. Qxd4 {[%emt 0:00:09]} b6 {[%emt 0:00:22]} 37. e5 {[%emt 0:00:56]} c5 {[%emt 0:00:51]} 38. Qd5 {[%emt 0:01:11]} Qe6 {[%emt 0:00:16]} 39. Qd3 {[%emt 0:01:26]} Rd7 {[%emt 0:00:37]} 40. Qe4 {[%emt 0:00:00]} Qd5 {[%emt 0:00:00]} 41. Qf5 {[%emt 0:05:25]} Re6 {[%emt 0:02:30]} 42. Re4 {[%emt 0:02:42]} Qd3 {[%emt 0:01:30]} 43. Qf2 {[%emt 0:05:34]} Qd2 {[%emt 0:01:55]} 44. R4e2 {[%emt 0:01:34]} Qd4 {[%emt 0:00:15]} 45. Re3 {[%emt 0:00:48]} Rd5 {[%emt 0:03:59]} 46. Kf1 {[%emt 0:04:12]} c4 {[%emt 0:01:57]} 47. bxc4 {[%emt 0:01:16]} Qxc4+ {[%emt 0:00:06]} 48. Kg1 {[%emt 0:00:11]} Qc5 {[%emt 0:00:26]} 49. Re4 {[%emt 0:05:13]} Qxf2+ {[%emt 0:00:47]} 50. Kxf2 {[%emt 0:00:08]} Kf8 {[%emt 0:00:20]} 51. Kf3 {[%emt 0:00:33]} Ke7 {[%emt 0:00:17]} 52. Rc1 {[%emt 0:02:58]} Kd7 {[%emt 0:00:20]} 53. Rec4 {[%emt 0:00:36]} Rexe5 {[%emt 0:02:42]} 54. Rc7+ {[%emt 0:00:20]} Ke8 {[%emt 0:01:46]} 55. Rxa7 {[%emt 0:00:18]} Rf5+ {[%emt 0:01:28]} 56. Ke2 {[%emt 0:00:57]} Rde5+ {[%emt 0:01:19]} 57. Kd3 {[%emt 0:01:24]} Rd5+ {[%emt 0:00:07]} 58. Ke3 {[%emt 0:00:30]} Rde5+ {[%emt 0:00:07]} 1/2-1/2

[Event "FIDE WCCC G10 2018"]
[Site "Santiago de Compostela"]
[Date "2018.11.15"]
[Round "11"]
[White "Zhou, Yafei"]
[Black "Chen, Yining"]
[Result "1/2-1/2"]
[ECO "A49"]
[WhiteElo "1648"]
[BlackElo "1457"]
[Annotator "NA"]
[PlyCount "110"]
[EventDate "2018.11.04"]
[EventType "swiss"]
[EventCountry "ESP"]
[SourceTitle "playchess.com"]
[Source "ChessBase"]
[SourceQuality "1"]
[TimeControl "40/5400+30:1800+30"]

1. d4 {[%emt 0:00:00]} Nf6 {[%emt 0:00:00]} 2. Nf3 {[%emt 0:00:00]} g6 {[%emt 0:00:00]} 3. g3 {[%emt 0:00:02]} Bg7 {[%emt 0:00:00]} 4. Bg2 {[%emt 0:00:04]} O-O {[%emt 0:00:17]} 5. O-O {[%emt 0:00:04]} d6 {[%emt 0:00:33]} 6. b3 {[%emt 0:00:11]} Bg4 {[%emt 0:01:16]} 7. Bb2 {[%emt 0:03:45]} c6 {[%emt 0:17:00]} 8. c4 {[%emt 0:01:01]} Bxf3 {[%emt 0:02:01]} 9. Bxf3 {[%emt 0:00:09]} Nbd7 {[%emt 0:00:05]} 10. Nc3 {[%emt 0:02:33]} e5 {[%emt 0:05:49]} 11. dxe5 {[%emt 0:00:16]} dxe5 {[%emt 0:01:34]} 12. Qc2 {[%emt 0:00:44]} Qc7 {[%emt 0:02:57]} 13. Rfd1 {[%emt 0:01:50]} Rfe8 {[%emt 0:02:06]} 14. Rab1 {[%emt 0:05:16]} Rad8 {[%emt 0:03:43]} 15. Bg2 {[%emt 0:04:53]} a5 {[%emt 0:03:05]} 16. a3 {[%emt 0:05:58]} Bf8 {[%emt 0:06:15]} 17. Bc1 {[%emt 0:02:50]} Nc5 {[%emt 0:07:09]} 18. Bg5 {[%emt 0:00:46]} Bg7 {[%emt 0:03:04]} 19. e3 {[%emt 0:10:01]} Rxd1+ {[%emt 0:05:06]} 20. Rxd1 {[%emt 0:00:07]} Nfd7 {[%emt 0:00:27]} 21. e4 {[%emt 0:18:49]} Ne6 {[%emt 0:01:11]} 22. Be3 {[%emt 0:00:33]} Nd4 {[%emt 0:00:55]} 23. Bxd4 {[%emt 0:00:53]} exd4 {[%emt 0:00:03]} 24. Ne2 {[%emt 0:00:23]} Qb6 {[%emt 0:03:06]} 25. Qb1 {[%emt 0:09:26]} Qc5 {[%emt 0:08:57]} 26. Qa2 {[%emt 0:04:13]} Rd8 {[%emt 0:01:58]} 27. Nf4 {[%emt 0:01:12]} Ne5 {[%emt 0:01:34]} 28. Bf1 {[%emt 0:09:29]} Bf8 {[%emt 0:02:11]} 29. a4 {[%emt 0:01:15]} Qb4 {[%emt 0:06:08]} 30. Nd3 {[%emt 0:00:36]} Nxd3 {[%emt 0:00:21]} 31. Rxd3 {[%emt 0:00:05]} Qe1 {[%emt 0:01:21]} 32. Qe2 {[%emt 0:00:17]} Qxe2 {[%emt 0:01:12]} 33. Bxe2 Bb4 {[%emt 0:00:33]} 34. Kg2 {[%emt 0:00:27]} Kf8 {[%emt 0:01:14]} 35. f4 Ke7 {[%emt 0:00:46]} 36. Kf3 {[%emt 0:00:08]} Ke6 {[%emt 0:01:16]} 37. g4 {[%emt 0:00:25]} Bc3 {[%emt 0:02:06]} 38. Rd1 {[%emt 0:00:06]} Kd6 {[%emt 0:01:22]} 39. e5+ {[%emt 0:01:10]} Ke6 {[%emt 0:04:50]} 40. Bd3 {[%emt 0:00:00]} Rg8 {[%emt 0:00:00]} 41. Rg1 {[%emt 0:00:26]} h6 {[%emt 0:04:31]} 42. Ke4 {[%emt 0:03:28]} f5+ {[%emt 0:02:39]} 43. Kf3 {[%emt 0:00:08]} fxg4+ {[%emt 0:00:27]} 44. Rxg4 {[%emt 0:00:05]} g5 {[%emt 0:01:45]} 45. Ke4 {[%emt 0:00:58]} Rf8 {[%emt 0:05:09]} 46. fxg5 {[%emt 0:00:55]} hxg5 {[%emt 0:00:11]} 47. Rxg5 {[%emt 0:00:47]} Rh8 {[%emt 0:00:43]} 48. Rg6+ {[%emt 0:00:27]} Kf7 {[%emt 0:00:25]} 49. Rg2 {[%emt 0:00:10]} Rh4+ {[%emt 0:02:41]} 50. Kf5 {[%emt 0:01:00]} Rh5+ {[%emt 0:00:57]} 51. Ke4 {[%emt 0:15:05]} Rh4+ {[%emt 0:00:12]} 52. Kf5 {[%emt 0:08:12]} Rh5+ {[%emt 0:00:10]} 53. Ke4 {[%emt 0:06:15]} Rh4+ {[%emt 0:00:05]} 54. Kf5 {[%emt 0:03:09]} Rh5+ {[%emt 0:00:05]} 55. Ke4 {[%emt 0:02:12]} Rh4+ {[%emt 0:00:05]} 1/2-1/2

[Event "FIDE WCCC G10 2018"]
[Site "Santiago de Compostela"]
[Date "2018.11.15"]
[Round "11"]
[White "Vlasova, Olesia"]
[Black "Nguyen, Ha Khanh Linh"]
[Result "1/2-1/2"]
[ECO "B22"]
[WhiteElo "1639"]
[BlackElo "1449"]
[Annotator "NA"]
[PlyCount "119"]
[EventDate "2018.11.04"]
[EventType "swiss"]
[EventCountry "ESP"]
[SourceTitle "playchess.com"]
[Source "ChessBase"]
[SourceQuality "1"]
[TimeControl "40/5400+30:1800+30"]

1. e4 {[%emt 0:00:00]} c5 {[%emt 0:00:00]} 2. c3 {[%emt 0:00:00]} d5 {[%emt 0:00:11]} 3. exd5 {[%emt 0:00:00]} Qxd5 {[%emt 0:00:04]} 4. d4 {[%emt 0:00:10]} Nc6 {[%emt 0:00:11]} 5. Nf3 {[%emt 0:00:25]} Bg4 {[%emt 0:00:30]} 6. Be2 {[%emt 0:00:49]} e6 {[%emt 0:01:09]} 7. h3 {[%emt 0:01:19]} Bh5 {[%emt 0:05:41]} 8. O-O {[%emt 0:02:00]} Nf6 {[%emt 0:00:34]} 9. Be3 {[%emt 0:01:22]} cxd4 {[%emt 0:01:00]} 10. cxd4 {[%emt 0:04:10]} Be7 {[%emt 0:03:41]} 11. Nc3 {[%emt 0:00:55]} Qa5 {[%emt 0:00:54]} 12. Qb3 {[%emt 0:01:08]} Qb4 {[%emt 0:03:25]} 13. Qxb4 {[%emt 0:02:17]} Nxb4 {[%emt 0:06:57]} 14. Bb5+ {[%emt 0:00:31]} Kf8 {[%emt 0:00:23]} 15. g4 {[%emt 0:03:10]} Bg6 {[%emt 0:02:13]} 16. Ne5 {[%emt 0:00:40]} a6 {[%emt 0:05:51]} 17. Be2 {[%emt 0:05:42]} Rd8 {[%emt 0:13:15]} 18. Rac1 {[%emt 0:01:58]} Bd6 {[%emt 0:08:44]} 19. Bg5 {[%emt 0:06:59]} Bb8 {[%emt 0:07:19]} 20. a3 {[%emt 0:02:04]} Nbd5 {[%emt 0:04:31]} 21. Nxd5 {[%emt 0:00:38]} exd5 {[%emt 0:00:24]} 22. Nd7+ {[%emt 0:09:41]} Rxd7 {[%emt 0:08:11]} 23. Rc8+ {[%emt 0:00:09]} Ne8 {[%emt 0:00:05]} 24. Rxb8 {[%emt 0:00:39]} f6 {[%emt 0:02:38]} 25. Bf4 {[%emt 0:01:51]} Kf7 {[%emt 0:03:02]} 26. Re1 {[%emt 0:02:03]} Rf8 {[%emt 0:02:38]} 27. Bf3 {[%emt 0:00:32]} Be4 {[%emt 0:03:30]} 28. Bxe4 {[%emt 0:00:37]} dxe4 {[%emt 0:00:05]} 29. Rxe4 {[%emt 0:00:17]} g5 {[%emt 0:01:11]} 30. Bd2 {[%emt 0:07:18]} Ng7 {[%emt 0:03:17]} 31. Rxf8+ {[%emt 0:01:06]} Kxf8 {[%emt 0:00:04]} 32. Kf1 {[%emt 0:00:26]} Kf7 {[%emt 0:00:30]} 33. Bb4 {[%emt 0:03:15]} Ne6 {[%emt 0:00:51]} 34. Bc5 {[%emt 0:02:01]} Nf4 {[%emt 0:04:10]} 35. h4 {[%emt 0:00:18]} h6 {[%emt 0:02:04]} 36. hxg5 {[%emt 0:00:58]} hxg5 {[%emt 0:00:13]} 37. Bb4 {[%emt 0:01:40]} Ne6 {[%emt 0:01:02]} 38. Bc3 {[%emt 0:00:14]} Nf4 {[%emt 0:00:47]} 39. Ke1 {[%emt 0:01:41]} Kg6 {[%emt 0:05:12]} 40. Kd2 {[%emt 0:00:00]} f5 {[%emt 0:00:00]} 41. gxf5+ {[%emt 0:02:54]} Kxf5 {[%emt 0:02:36]} 42. Re5+ {[%emt 0:01:03]} Kg4 {[%emt 0:01:25]} 43. Ke3 {[%emt 0:02:45]} Nd5+ {[%emt 0:05:44]} 44. Kd3 {[%emt 0:00:24]} Nf4+ {[%emt 0:00:26]} 45. Kc4 {[%emt 0:01:03]} b5+ {[%emt 0:02:55]} 46. Kb3 {[%emt 0:01:41]} Nd3 {[%emt 0:04:19]} 47. f3+ {[%emt 0:04:57]} Kxf3 {[%emt 0:08:39]} 48. Rxg5 {[%emt 0:00:12]} Rd6 {[%emt 0:00:49]} 49. Rg8 {[%emt 0:04:31]} Ke4 {[%emt 0:02:01]} 50. Re8+ {[%emt 0:00:19]} Kd5 {[%emt 0:00:27]} 51. Re3 {[%emt 0:00:46]} Nf4 {[%emt 0:00:49]} 52. Re5+ {[%emt 0:02:43]} Kc6 {[%emt 0:00:31]} 53. Kc2 {[%emt 0:01:48]} Nd5 {[%emt 0:01:08]} 54. Kd3 {[%emt 0:00:38]} Rf6 {[%emt 0:00:22]} 55. Bd2 {[%emt 0:00:37]} Rd6 {[%emt 0:01:21]} 56. Ke4 {[%emt 0:00:46]} Nf6+ {[%emt 0:00:24]} 57. Kf5 {[%emt 0:00:30]} Nd5 {[%emt 0:01:11]} 58. Bg5 {[%emt 0:00:29]} Nb6 {[%emt 0:00:46]} 59. Rc5+ {[%emt 0:01:06]} Kd7 {[%emt 0:00:45]} 60. Ke4 1/2-1/2

[Event "FIDE WCCC G10 2018"]
[Site "Santiago de Compostela"]
[Date "2018.11.15"]
[Round "11"]
[White "Velea, Sophie"]
[Black "Vu, My Linh"]
[Result "1-0"]
[ECO "B08"]
[WhiteElo "1593"]
[BlackElo "1349"]
[Annotator "NA"]
[PlyCount "135"]
[EventDate "2018.11.04"]
[EventType "swiss"]
[EventCountry "ESP"]
[SourceTitle "playchess.com"]
[Source "ChessBase"]
[SourceQuality "1"]
[TimeControl "40/5400+30:1800+30"]

1. e4 {[%emt 0:00:00]} g6 {[%emt 0:00:00]} 2. d4 {[%emt 0:00:00]} Bg7 {[%emt 0:00:00]} 3. Nc3 {[%emt 0:00:07]} d6 {[%emt 0:00:06]} 4. Nf3 {[%emt 0:00:21]} Nf6 {[%emt 0:00:09]} 5. Be2 {[%emt 0:00:33]} O-O {[%emt 0:00:18]} 6. O-O {[%emt 0:00:43]} e5 {[%emt 0:00:48]} 7. Bg5 {[%emt 0:02:22]} Be6 {[%emt 0:02:23]} 8. Qd2 {[%emt 0:01:24]} exd4 {[%emt 0:01:22]} 9. Nxd4 {[%emt 0:00:45]} Nbd7 {[%emt 0:00:31]} 10. f4 {[%emt 0:01:23]} h6 {[%emt 0:02:23]} 11. f5 {[%emt 0:13:34]} Bxf5 {[%emt 0:06:08]} 12. Bxf6 {[%emt 0:04:14]} Qxf6 {[%emt 0:00:43]} 13. Nb3 {[%emt 0:00:51]} Qh4 {[%emt 0:01:53]} 14. exf5 {[%emt 0:01:57]} Be5 {[%emt 0:00:22]} 15. h3 {[%emt 0:08:18]} Qg3 {[%emt 0:00:55]} 16. Rf3 {[%emt 0:04:39]} Qh2+ {[%emt 0:00:53]} 17. Kf2 {[%emt 0:01:32]} Nf6 {[%emt 0:01:49]} 18. Qd3 {[%emt 0:08:53]} Nh5 {[%emt 0:04:59]} 19. Rg1 {[%emt 0:17:57]} Rae8 {[%emt 0:03:51]} 20. Nd5 {[%emt 0:04:19]} c6 {[%emt 0:07:21]} 21. fxg6 {[%emt 0:02:08]} f5 {[%emt 0:03:24]} 22. Ne3 {[%emt 0:03:34]} Bg3+ {[%emt 0:03:35]} 23. Kf1 {[%emt 0:02:04]} Nf4 {[%emt 0:01:17]} 24. Qd2 {[%emt 0:01:52]} Nxe2 {[%emt 0:00:29]} 25. Qxe2 {[%emt 0:02:18]} f4 {[%emt 0:00:12]} 26. Nd4 {[%emt 0:04:16]} d5 {[%emt 0:12:18]} 27. c4 {[%emt 0:02:57]} c5 {[%emt 0:05:38]} 28. Ng4 {[%emt 0:02:54]} cxd4 {[%emt 0:06:27]} 29. Nxh2 {[%emt 0:01:09]} Rxe2 {[%emt 0:00:42]} 30. Kxe2 {[%emt 0:00:20]} Bxh2 {[%emt 0:00:34]} 31. Rd1 {[%emt 0:00:50]} Re8+ {[%emt 0:01:24]} 32. Kd3 {[%emt 0:00:41]} dxc4+ {[%emt 0:00:14]} 33. Kxc4 {[%emt 0:00:35]} Re2 {[%emt 0:00:54]} 34. Rxd4 {[%emt 0:01:48]} Rxg2 {[%emt 0:00:47]} 35. Rd7 {[%emt 0:01:19]} Rxb2 {[%emt 0:01:31]} 36. a3 {[%emt 0:01:30]} Bg3 {[%emt 0:04:41]} 37. Rfd3 {[%emt 0:01:29]} Rb6 {[%emt 0:02:25]} 38. Rb3 {[%emt 0:00:57]} Rxg6 {[%emt 0:03:11]} 39. Rd8+ {[%emt 0:01:01]} Kf7 {[%emt 0:01:28]} 40. Rxb7+ {[%emt 0:00:00]} Kf6 {[%emt 0:00:00]} 41. Rd6+ {[%emt 0:00:52]} Kg5 {[%emt 0:00:19]} 42. Rxg6+ {[%emt 0:00:20]} Kxg6 {[%emt 0:00:07]} 43. Rxa7 {[%emt 0:00:49]} f3 {[%emt 0:00:29]} 44. Kd3 {[%emt 0:00:58]} Kg5 {[%emt 0:00:24]} 45. Ra4 {[%emt 0:00:34]} h5 {[%emt 0:01:34]} 46. Ke3 {[%emt 0:00:27]} f2 {[%emt 0:00:44]} 47. Ke2 {[%emt 0:00:11]} h4 {[%emt 0:00:38]} 48. Rc4 {[%emt 0:00:50]} Kf5 {[%emt 0:00:09]} 49. a4 {[%emt 0:00:28]} Ke5 {[%emt 0:00:46]} 50. a5 {[%emt 0:00:20]} Kd5 {[%emt 0:00:06]} 51. a6 {[%emt 0:00:47]} Bb8 {[%emt 0:02:00]} 52. Rb4 {[%emt 0:00:23]} Ba7 {[%emt 0:00:12]} 53. Rb7 {[%emt 0:00:12]} Bc5 {[%emt 0:01:03]} 54. a7 {[%emt 0:00:09]} Bxa7 {[%emt 0:00:11]} 55. Rxa7 {[%emt 0:00:02]} Ke4 {[%emt 0:00:08]} 56. Ra4+ {[%emt 0:00:12]} Kf5 {[%emt 0:00:08]} 57. Rxh4 {[%emt 0:00:09]} Kg5 {[%emt 0:00:04]} 58. Rg4+ {[%emt 0:00:09]} Kh5 {[%emt 0:00:06]} 59. Kxf2 {[%emt 0:00:06]} Kh6 {[%emt 0:00:05]} 60. Kf3 {[%emt 0:00:09]} Kh7 {[%emt 0:00:06]} 61. Kf4 {[%emt 0:00:25]} Kh6 {[%emt 0:00:06]} 62. Rh4+ {[%emt 0:00:29]} Kg6 {[%emt 0:00:05]} 63. Kg4 {[%emt 0:00:06]} Kg7 {[%emt 0:00:07]} 64. Kf5 {[%emt 0:00:13]} Kf7 {[%emt 0:00:07]} 65. Rh7+ {[%emt 0:00:12]} Kf8 {[%emt 0:00:06]} 66. Kg6 {[%emt 0:00:13]} Kg8 {[%emt 0:00:03]} 67. Rf7 {[%emt 0:00:24]} Kh8 {[%emt 0:00:08]} 68. Rf8# {[%emt 0:00:05]} 1-0